fUST/lending_fUST_20250901
["ID","MTS","AMOUNT","RATE_DAILY","PERIOD"]
[382586323,1756674655016,-508.04,0.00017646,2]
[382586326,1756674655027,-480.0,0.00017646,2]
[382586328,1756674655038,-480.0,0.00017646,2]
[382586330,1756674655049,-876.55,0.00017646,2]
[382586332,1756674655060,-480.0,0.00017646,2]
[382586334,1756674655072,-480.0,0.00017646,2]
[382586337,1756674655084,-555.91,0.00017646,2]
[382586339,1756674655095,-1110.35,0.00017646,2]
[382586341,1756674655106,-989.14,0.00017646,2]
[382586343,1756674655118,-623.15,0.00017646,2]
[382586345,1756674655130,-151.0,0.00017646,2]
[382586348,1756674655141,-480.0,0.00017646,2]
[382586350,1756674655152,-972.85,0.00017646,2]
[382586352,1756674655166,-562.21,0.00017646,2]
[382586354,1756674655178,-1052.02,0.00017646,2]
[382586357,1756674655190,-480.0,0.00017646,2]
[382586359,1756674655201,-151.0,0.00017646,2]
[382586361,1756674655212,-151.0,0.00017646,2]
[382586363,1756674655224,-480.0,0.00017646,2]
[382586365,1756674655236,-480.0,0.00017646,2]
[382586368,1756674655248,-480.0,0.00017646,2]
[382586370,1756674655259,-480.0,0.00017646,2]
[382586372,1756674655271,-480.0,0.00017646,2]
[382586374,1756674655283,-480.0,0.00017646,2]
[382586377,1756674655294,-480.0,0.00017646,2]
[382586379,1756674655305,-151.0,0.00017646,2]
[382586381,1756674655317,-279.51962436,0.00017646,2]
[382586383,1756674655328,-480.0,0.00017646,2]
[382586385,1756674655337,-480.0,0.00017646,2]
[382586387,1756674655346,-510.79,0.00017646,2]
[382586410,1756674655524,-719.42,0.00017646,2]
[382586414,1756674655606,-480.0,0.00017646,2]
[382586417,1756674655620,-573.64,0.00017646,2]
[382586419,1756674655629,-480.0,0.00017646,2]
[382586421,1756674655639,-151.0,0.00017646,2]
[382586423,1756674655648,-151.0,0.00017646,2]
[382586425,1756674655657,-480.0,0.00017646,2]
[382586427,1756674655667,-649.3,0.00017646,2]
[382586429,1756674655676,-585.21,0.00017646,2]
[382586431,1756674655686,-480.0,0.00017646,2]
[382586433,1756674655696,-480.0,0.00017646,2]
[382586435,1756674655705,-480.0,0.00017646,2]
[382586437,1756674655714,-496.46,0.00017646,2]
[382586439,1756674655723,-1173.25,0.00017646,2]
[382586441,1756674655732,-480.0,0.00017646,2]
[382586443,1756674655741,-480.0,0.00017646,2]
[382586445,1756674655751,-151.0,0.00017646,2]
[382586447,1756674655760,-200.0,0.00017646,3]
[382586449,1756674655770,-200.0,0.00017646,3]
[382586451,1756674655779,-200.0,0.00017646,3]
[382586453,1756674655789,-200.0,0.00017646,3]
[382586455,1756674655798,-200.0,0.00017646,3]
[382586457,1756674655808,-480.0,0.00017646,2]
[382586459,1756674655817,-482.35,0.00017646,2]
[382586461,1756674655827,-518.63,0.00017646,2]
[382586463,1756674655837,-480.0,0.00017646,2]
[382586465,1756674655846,-866.81,0.00017646,2]
[382586467,1756674655855,-895.76,0.00017646,2]
[382586469,1756674655866,-910.6,0.00017646,2]
[382586471,1756674655879,-587.72,0.00017646,2]
[382586473,1756674655888,-192.28287376,0.00017646,2]
[382586475,1756674655898,-882.7,0.00017646,2]
[382586477,1756674655907,-990.58,0.00017646,2]
[382586479,1756674655916,-480.0,0.00017646,2]
[382586481,1756674655925,-892.91,0.00017646,2]
[382586483,1756674655934,-398.33755648,0.00017646,2]
[382586485,1756674655945,-1124.35,0.00017646,2]
[382586487,1756674655954,-480.0,0.00017646,2]
[382586489,1756674655964,-480.0,0.00017646,2]
[382586491,1756674655974,-556.81,0.00017646,2]
[382586493,1756674655984,-480.0,0.00017646,2]
[382586495,1756674655994,-1094.52,0.00017646,2]
[382586497,1756674656003,-480.0,0.00017646,2]
[382586499,1756674656012,-849.35,0.00017646,2]
[382586501,1756674656022,-480.0,0.00017646,2]
[382586503,1756674656031,-930.7,0.00017646,2]
[382586505,1756674656040,-1508.46,0.00017646,2]
[382586507,1756674656049,-599.26,0.00017646,2]
[382586509,1756674656059,-1303.59,0.00017646,2]
[382586511,1756674656068,-1151.72,0.00017646,2]
[382586513,1756674656078,-480.0,0.00017646,2]
[382586515,1756674656087,-152.0,0.00017646,2]
[382586517,1756674656097,-480.0,0.00017646,2]
[382586519,1756674656106,-480.0,0.00017646,2]
[382586521,1756674656115,-480.0,0.00017646,2]
[382586523,1756674656124,-480.0,0.00017646,2]
[382586525,1756674656134,-480.0,0.00017646,2]
[382586527,1756674656144,-480.0,0.00017646,2]
[382586529,1756674656153,-970.25,0.00017646,2]
[382586531,1756674656163,-480.0,0.00017646,2]
[382586533,1756674656172,-631.64,0.00017646,2]
[382586535,1756674656182,-480.0,0.00017646,2]
[382586537,1756674656191,-1809.39,0.00017646,2]
[382586539,1756674656200,-480.0,0.00017646,2]
[382586541,1756674656209,-480.0,0.00017646,2]
[382586543,1756674656218,-480.0,0.00017646,2]
[382586545,1756674656227,-480.0,0.00017646,2]
[382586547,1756674656236,-497.68,0.00017646,2]
[382586549,1756674656245,-480.0,0.00017646,2]
[382586551,1756674656254,-480.0,0.00017646,2]
[382586553,1756674656263,-1577.96,0.00017646,2]
[382586555,1756674656272,-560.13,0.00017646,2]
[382586557,1756674656282,-480.0,0.00017646,2]
[382586559,1756674656292,-480.0,0.00017646,2]
[382586561,1756674656302,-963.21,0.00017646,2]
[382586563,1756674656311,-480.0,0.00017646,2]
[382586564,1756674656320,-480.0,0.00017646,2]
[382586566,1756674656330,-572.97,0.00017646,2]
[382586568,1756674656339,-480.0,0.00017646,2]
[382586571,1756674656349,-480.0,0.00017646,2]
[382586573,1756674656358,-480.0,0.00017646,2]
[382586575,1756674656367,-1082.95,0.00017646,2]
[382586577,1756674656376,-480.0,0.00017646,2]
[382586579,1756674656386,-553.35,0.00017646,2]
[382586581,1756674656395,-535.16,0.00017646,2]
[382586582,1756674656404,-480.0,0.00017646,2]
[382586585,1756674656413,-535.7,0.00017646,2]
[382586587,1756674656423,-480.0,0.00017646,2]
[382586589,1756674656433,-1149.21,0.00017646,2]
[382586591,1756674656442,-480.0,0.00017646,2]
[382586593,1756674656453,-480.0,0.00017646,2]
[382586594,1756674656462,-660.94,0.00017646,2]
[382586596,1756674656471,-480.0,0.00017646,2]
[382586598,1756674656481,-594.61,0.00017646,2]
[382586601,1756674656491,-480.0,0.00017646,2]
[382586603,1756674656500,-480.0,0.00017646,2]
[382586604,1756674656509,-779.46,0.00017646,2]
[382586606,1756674656519,-151.0,0.00017646,2]
[382586608,1756674656528,-279.423575,0.00017646,2]
[382586610,1756674656537,-569.86,0.00017646,2]
[382586611,1756674656547,-944.13,0.00017646,2]
[382586612,1756674656556,-151.0,0.00017646,2]
[382586613,1756674656568,-151.0,0.00017646,2]
[382586614,1756674656578,-151.0,0.00017646,2]
[382586615,1756674656587,-151.0,0.00017646,2]
[382586616,1756674656597,-480.0,0.00017646,2]
[382586617,1756674656606,-480.0,0.00017646,2]
[382586618,1756674656615,-151.0,0.00017646,2]
[382586619,1756674656625,-480.0,0.00017646,2]
[382586620,1756674656634,-184.038744,0.00017646,2]
[382586621,1756674656644,-1125.84,0.00017646,2]
[382586622,1756674656653,-151.0,0.00017646,2]
[382586623,1756674656664,-151.0,0.00017646,2]
[382586624,1756674656673,-674.7,0.00017647,2]
[382586625,1756674656683,-480.0,0.00017647,2]
[382586626,1756674656692,-480.0,0.00017647,2]
[382586627,1756674656702,-874.1,0.00017647,2]
[382586628,1756674656711,-480.0,0.00017647,2]
[382586629,1756674656720,-480.0,0.00017647,2]
[382586630,1756674656730,-480.0,0.00017647,2]
[382586631,1756674656739,-480.0,0.00017647,2]
[382586632,1756674656749,-480.0,0.00017647,2]
[382586633,1756674656758,-480.0,0.00017647,2]
[382586634,1756674656770,-480.0,0.00017647,2]
[382586635,1756674656779,-480.0,0.00017647,2]
[382586636,1756674656789,-502.64,0.00017647,2]
[382586637,1756674656799,-484.24708627,0.00017647,2]
[382586638,1756674656808,-580.79,0.00017647,2]
[382586639,1756674656817,-484.01,0.00017647,2]
[382586640,1756674656827,-151.0,0.00017647,2]
[382586641,1756674656837,-480.0,0.00017647,2]
[382586642,1756674656846,-151.0,0.00017648,2]
[382586643,1756674656856,-272.71618602,0.00017648,2]
[382586644,1756674656866,-500.0,0.00017648,2]
[382586645,1756674656875,-480.0,0.00017648,2]
[382586646,1756674656884,-480.0,0.00017648,2]
[382586647,1756674656893,-480.0,0.00017648,2]
[382586648,1756674656903,-841.54,0.00017648,2]
[382586649,1756674656912,-480.0,0.00017648,2]
[382586650,1756674656922,-514.58,0.00017648,2]
[382586651,1756674656931,-389.69539873,0.00017648,2]
[382586652,1756674656941,-658.13,0.00017648,2]
[382586653,1756674656951,-480.0,0.00017648,2]
[382586654,1756674656960,-493.34,0.00017648,2]
[382586655,1756674656970,-581.62,0.00017648,2]
[382586656,1756674656979,-480.0,0.00017648,2]
[382586657,1756674656989,-1146.22,0.00017648,2]
[382586658,1756674656998,-675.12,0.00017648,2]
[382586659,1756674657008,-480.0,0.00017648,2]
[382586660,1756674657018,-287.21123042,0.00017648,2]
[382586661,1756674657027,-537.04,0.00017648,2]
[382586662,1756674657037,-1256.0,0.0001765,2]
[382586663,1756674657046,-500.0,0.00017673,2]
[382586664,1756674657056,-500.0,0.00017673,2]
[382586665,1756674657066,-151.0,0.000177,2]
[382586666,1756674657075,-975.0,0.00017721,2]
[382586667,1756674657085,-632.0,0.00017721,2]
[382586668,1756674657095,-2152.0,0.00017721,2]
[382586669,1756674657104,-779.43082828,0.00017765,2]
[382586670,1756674657113,-150.0,0.00017774,2]
[382586671,1756674657123,-207.93,0.00017774,2]
[382586672,1756674657132,-182.531,0.00017774,2]
[382586673,1756674657142,-848.0,0.00017816,2]
[382586674,1756674657151,-151.0,0.00017821,2]
[382586675,1756674657161,-151.0,0.00017821,2]
[382586676,1756674657170,-151.0,0.00017821,2]
[382586677,1756674657180,-160.120775,0.00017821,2]
[382586678,1756674657190,-160.120775,0.00017821,2]
[382586679,1756674657199,-160.120775,0.00017821,2]
[382586680,1756674657208,-160.120775,0.00017821,2]
[382586681,1756674657218,-1032.83,0.00017876,2]
[382586682,1756674657227,-621.14,0.00017876,2]
[382586683,1756674657236,-480.0,0.00017876,2]
[382586684,1756674657246,-480.0,0.00017876,2]
[382586685,1756674657255,-1833.22,0.00017876,2]
[382586686,1756674657264,-480.0,0.00017876,2]
[382586687,1756674657273,-480.0,0.00017876,2]
[382586688,1756674657283,-979.7,0.00017876,2]
[382586689,1756674657292,-480.0,0.00017876,2]
[382586690,1756674657301,-1585.93,0.00017876,2]
[382586691,1756674657311,-612.34,0.00017876,2]
[382586692,1756674657320,-505.39,0.00017876,2]
[382586693,1756674657330,-1499.59,0.00017876,2]
[382586694,1756674657339,-649.57,0.00017876,2]
[382586695,1756674657351,-480.0,0.00017876,2]
[382586696,1756674657360,-487.49,0.00017876,2]
[382586697,1756674657369,-579.1,0.00017876,2]
[382586698,1756674657379,-480.0,0.00017876,2]
[382586699,1756674657388,-979.23,0.00017876,2]
[382586700,1756674657397,-500.0,0.00017877,2]
[382586701,1756674657406,-480.0,0.00017877,2]
[382586702,1756674657416,-922.29,0.00017877,2]
[382586703,1756674657425,-151.0,0.00017877,2]
[382586704,1756674657434,-151.0,0.00017877,2]
[382586705,1756674657443,-151.0,0.00017877,2]
[382586706,1756674657457,-480.0,0.00017877,2]
[382586707,1756674657466,-480.0,0.00017877,2]
[382586708,1756674657475,-480.0,0.00017877,2]
[382586709,1756674657485,-487.12,0.00017877,2]
[382586711,1756674657494,-560.06,0.00017877,2]
[382586712,1756674657504,-480.0,0.00017877,2]
[382586713,1756674657514,-480.0,0.00017877,2]
[382586715,1756674657524,-1330.57,0.00017877,2]
[382586717,1756674657535,-480.0,0.00017877,2]
[382586719,1756674657544,-480.0,0.00017877,2]
[382586720,1756674657553,-480.0,0.00017877,2]
[382586721,1756674657563,-623.42,0.00017877,2]
[382586722,1756674657572,-480.0,0.00017877,2]
[382586723,1756674657581,-480.0,0.00017877,2]
[382586724,1756674657591,-553.56,0.00017877,2]
[382586725,1756674657601,-614.54,0.00017877,2]
[382586726,1756674657610,-733.87,0.00017877,2]
[382586727,1756674657619,-947.4,0.00017877,2]
[382586728,1756674657628,-971.89,0.00017877,2]
[382586729,1756674657638,-781.55,0.00017877,2]
[382586730,1756674657647,-151.0,0.00017877,2]
[382586731,1756674657656,-480.0,0.00017877,2]
[382586732,1756674657667,-480.0,0.00017877,2]
[382586733,1756674657676,-480.0,0.00017877,2]
[382586734,1756674657686,-480.0,0.00017877,2]
[382586735,1756674657696,-480.0,0.00017877,2]
[382586736,1756674657705,-920.75,0.00017877,2]
[382586737,1756674657714,-480.0,0.00017877,2]
[382586738,1756674657723,-706.22,0.00017877,2]
[382586739,1756674657733,-3485.14,0.00017877,2]
[382586740,1756674657742,-559.23,0.00017877,2]
[382586741,1756674657751,-1384.43,0.00017877,2]
[382586742,1756674657760,-694.71,0.00017877,2]
[382586743,1756674657770,-151.0,0.00017877,2]
[382586744,1756674657780,-480.0,0.00017877,2]
[382586745,1756674657790,-151.0,0.00017877,2]
[382586746,1756674657800,-773.25,0.00017877,2]
[382586747,1756674657810,-151.0,0.00017877,2]
[382586748,1756674657820,-226.906472,0.00017877,2]
[382586749,1756674657830,-358.926302,0.00017877,2]
[382586750,1756674657840,-269.855448,0.00017877,2]
[382586751,1756674657850,-269.855448,0.00017877,2]
[382586752,1756674657860,-269.855448,0.00017877,2]
[382586753,1756674657869,-269.855448,0.00017877,2]
[382586754,1756674657879,-772.05,0.00017877,2]
[382586755,1756674657888,-480.0,0.00017877,2]
[382586756,1756674657897,-824.35,0.00017877,2]
[382586757,1756674657907,-905.18,0.00017877,2]
[382586758,1756674657916,-673.01,0.00017877,2]
[382586759,1756674657926,-480.0,0.00017877,2]
[382586760,1756674657936,-929.05,0.00017877,2]
[382586761,1756674657945,-4200.05,0.00017877,2]
[382586762,1756674657955,-5722.98,0.00017877,2]
[382586763,1756674657967,-577.04,0.00017877,2]
[382586764,1756674657976,-595.51,0.00017877,2]
[382586765,1756674657986,-856.48,0.00017877,2]
[382586766,1756674657995,-480.0,0.00017877,2]
[382586767,1756674658005,-775.39,0.00017877,2]
[382586768,1756674658015,-1901.44,0.00017877,2]
[382586769,1756674658024,-480.0,0.00017877,2]
[382586771,1756674658034,-1143.32,0.00017877,2]
[382586773,1756674658043,-480.0,0.00017877,2]
[382586775,1756674658053,-480.0,0.00017877,2]
[382586777,1756674658062,-480.0,0.00017877,2]
[382586778,1756674658071,-678.0,0.00017877,2]
[382586779,1756674658082,-480.0,0.00017877,2]
[382586780,1756674658091,-480.0,0.00017877,2]
[382586781,1756674658101,-767.3,0.00017877,2]
[382586783,1756674658110,-480.0,0.00017877,2]
[382586785,1756674658120,-266.26669539,0.00017877,2]
[382586787,1756674658129,-480.0,0.00017877,2]
[382586789,1756674658139,-4028.03,0.00017877,2]
[382586791,1756674658148,-843.58,0.00017877,2]
[382586793,1756674658158,-480.0,0.00017877,2]
[382586794,1756674658167,-973.72,0.00017877,2]
[382586795,1756674658178,-480.0,0.00017877,2]
[382586797,1756674658187,-2742.43,0.00017877,2]
[382586799,1756674658196,-480.0,0.00017877,2]
[382586800,1756674658206,-812.45,0.00017877,2]
[382586802,1756674658216,-480.0,0.00017877,2]
[382586804,1756674658229,-883.04,0.00017877,2]
[382586806,1756674658238,-480.0,0.00017877,2]
[382586808,1756674658248,-480.0,0.00017877,2]
[382586810,1756674658258,-617.9,0.00017877,2]
[382586812,1756674658269,-480.0,0.00017877,2]
[382586814,1756674658278,-480.0,0.00017877,2]
[382586816,1756674658287,-480.0,0.00017877,2]
[382586818,1756674658297,-524.07,0.00017877,2]
[382586820,1756674658306,-480.0,0.00017877,2]
[382586822,1756674658315,-860.12,0.00017877,2]
[382586824,1756674658324,-150.0,0.00017883,2]
[382586826,1756674658334,-187.2916484,0.00017894,2]
[382586828,1756674658343,-151.0,0.000179,2]
[382586830,1756674658353,-848.0,0.00017906,2]
[382586833,1756674658366,-480.0,0.00017919,2]
[382586835,1756674658375,-744.5,0.00017919,2]
[382586837,1756674658384,-874.18,0.00017919,2]
[382586838,1756674658395,-480.0,0.00017919,2]
[382586841,1756674658404,-450.20651157,0.0001792,2]
[382586842,1756674658414,-480.0,0.0001792,2]
[382586844,1756674658423,-480.0,0.0001792,2]
[382586846,1756674658433,-480.0,0.0001792,2]
[382586848,1756674658442,-480.0,0.0001792,2]
[382586850,1756674658453,-895.0,0.0001792,2]
[382586852,1756674658462,-480.0,0.0001792,2]
[382586854,1756674658471,-480.0,0.0001792,2]
[382586856,1756674658480,-480.0,0.0001792,2]
[382586858,1756674658490,-762.61,0.0001792,2]
[382586860,1756674658501,-480.0,0.0001792,2]
[382586862,1756674658510,-785.19,0.0001792,2]
[382586864,1756674658520,-480.0,0.0001792,2]
[382586866,1756674658530,-1046.65,0.0001792,2]
[382586868,1756674658539,-522.49,0.0001792,2]
[382586870,1756674658549,-480.0,0.0001792,2]
[382586872,1756674658558,-480.0,0.0001792,2]
[382586874,1756674658567,-480.0,0.0001792,2]
[382586876,1756674658576,-480.0,0.0001792,2]
[382586878,1756674658585,-480.0,0.0001792,2]
[382586880,1756674658594,-480.0,0.0001792,2]
[382586882,1756674658604,-480.0,0.0001792,2]
[382586884,1756674658613,-856.76,0.0001792,2]
[382586886,1756674658622,-480.0,0.0001792,2]
[382586888,1756674658632,-480.0,0.0001792,2]
[382586890,1756674658642,-1087.8,0.0001792,2]
[382586892,1756674658651,-480.0,0.0001792,2]
[382586894,1756674658660,-995.77,0.0001792,2]
[382586895,1756674658669,-151.0,0.0001792,2]
[382586897,1756674658678,-480.0,0.0001792,2]
[382586899,1756674658688,-480.0,0.0001792,2]
[382586901,1756674658697,-480.0,0.0001792,2]
[382586903,1756674658706,-836.07,0.0001792,2]
[382586905,1756674658716,-548.66,0.0001792,2]
[382586907,1756674658725,-698.27,0.0001792,2]
[382586909,1756674658735,-480.0,0.0001792,2]
[382586911,1756674658744,-480.0,0.0001792,2]
[382586913,1756674658753,-765.48,0.0001792,2]
[382586915,1756674658763,-1225.05,0.0001792,2]
[382586920,1756674658924,-674.39,0.0001792,2]
[382586921,1756674658942,-480.0,0.0001792,2]
[382586922,1756674658952,-480.0,0.0001792,2]
[382586923,1756674658962,-533.61,0.0001792,2]
[382586924,1756674658971,-508.04,0.0001792,2]
[382586925,1756674658981,-480.0,0.0001792,2]
[382586926,1756674658991,-480.0,0.0001792,2]
[382586927,1756674659001,-876.55,0.0001792,2]
[382586928,1756674659011,-480.0,0.0001792,2]
[382586929,1756674659020,-480.0,0.0001792,2]
[382586930,1756674659031,-555.91,0.0001792,2]
[382586931,1756674659041,-1110.35,0.0001792,2]
[382586932,1756674659051,-989.14,0.0001792,2]
[382586933,1756674659061,-623.15,0.0001792,2]
[382586934,1756674659070,-480.0,0.0001792,2]
[382586935,1756674659080,-972.85,0.0001792,2]
[382586936,1756674659089,-562.21,0.0001792,2]
[382586937,1756674659098,-1052.02,0.0001792,2]
[382586938,1756674659108,-480.0,0.0001792,2]
[382586939,1756674659117,-480.0,0.0001792,2]
[382586940,1756674659127,-480.0,0.0001792,2]
[382586941,1756674659136,-480.0,0.0001792,2]
[382586942,1756674659146,-480.0,0.0001792,2]
[382586943,1756674659155,-480.0,0.0001792,2]
[382586944,1756674659164,-480.0,0.0001792,2]
[382586945,1756674659174,-480.0,0.0001792,2]
[382586946,1756674659183,-480.0,0.0001792,2]
[382586947,1756674659193,-480.0,0.0001792,2]
[382586948,1756674659203,-510.79,0.0001792,2]
[382586949,1756674659212,-719.42,0.0001792,2]
[382586951,1756674659221,-480.0,0.0001792,2]
[382586953,1756674659231,-573.64,0.0001792,2]
[382586955,1756674659240,-480.0,0.0001792,2]
[382586957,1756674659249,-151.0,0.0001792,2]
[382586959,1756674659259,-151.0,0.0001792,2]
[382586961,1756674659268,-480.0,0.0001792,2]
[382586963,1756674659278,-649.3,0.0001792,2]
[382586965,1756674659287,-585.21,0.0001792,2]
[382586967,1756674659296,-480.0,0.0001792,2]
[382586969,1756674659306,-480.0,0.0001792,2]
[382586971,1756674659315,-480.0,0.0001792,2]
[382586973,1756674659324,-496.46,0.0001792,2]
[382586975,1756674659333,-1173.25,0.0001792,2]
[382586977,1756674659342,-480.0,0.0001792,2]
[382586979,1756674659351,-480.0,0.0001792,2]
[382586981,1756674659361,-482.35,0.0001792,2]
[382586983,1756674659370,-518.63,0.0001792,2]
[382586985,1756674659379,-480.0,0.0001792,2]
[382586987,1756674659389,-866.81,0.0001792,2]
[382586989,1756674659398,-895.76,0.0001792,2]
[382586991,1756674659408,-910.6,0.0001792,2]
[382586993,1756674659417,-587.72,0.0001792,2]
[382586995,1756674659427,-882.7,0.0001792,2]
[382586997,1756674659435,-990.58,0.0001792,2]
[382586999,1756674659445,-480.0,0.0001792,2]
[382587001,1756674659458,-892.91,0.0001792,2]
[382587003,1756674659467,-1124.35,0.0001792,2]
[382587005,1756674659477,-480.0,0.0001792,2]
[382587007,1756674659487,-480.0,0.0001792,2]
[382587009,1756674659498,-556.81,0.0001792,2]
[382587011,1756674659508,-480.0,0.0001792,2]
[382587013,1756674659517,-1094.52,0.0001792,2]
[382587015,1756674659529,-625.59969605,0.0001792,2]
[382587017,1756674659538,-849.35,0.0001792,2]
[382587019,1756674659547,-480.0,0.0001792,2]
[382587021,1756674659558,-930.7,0.0001792,2]
[382587023,1756674659567,-1508.46,0.0001792,2]
[382587025,1756674659577,-599.26,0.0001792,2]
[382587027,1756674659587,-1303.59,0.0001792,2]
[382587029,1756674659596,-1151.72,0.0001792,2]
[382587031,1756674659606,-480.0,0.0001792,2]
[382587033,1756674659615,-578.50855836,0.0001792,2]
[382587035,1756674659625,-480.0,0.0001792,2]
[382587037,1756674659635,-480.0,0.0001792,2]
[382587039,1756674659644,-480.0,0.0001792,2]
[382587041,1756674659654,-480.0,0.0001792,2]
[382587043,1756674659663,-480.0,0.0001792,2]
[382587045,1756674659673,-970.25,0.0001792,2]
[382587048,1756674659684,-480.0,0.0001792,2]
[382587050,1756674659695,-631.64,0.0001792,2]
[382587052,1756674659706,-480.0,0.0001792,2]
[382587053,1756674659716,-1809.39,0.0001792,2]
[382587055,1756674659725,-480.0,0.0001792,2]
[382587058,1756674659735,-480.0,0.0001792,2]
[382587060,1756674659745,-480.0,0.0001792,2]
[382587062,1756674659754,-480.0,0.0001792,2]
[382587063,1756674659764,-497.68,0.0001792,2]
[382587065,1756674659773,-480.0,0.0001792,2]
[382587067,1756674659783,-1577.96,0.0001792,2]
[382587069,1756674659793,-560.13,0.0001792,2]
[382587071,1756674659803,-480.0,0.0001792,2]
[382587073,1756674659812,-480.0,0.0001792,2]
[382587075,1756674659822,-963.21,0.0001792,2]
[382587077,1756674659832,-480.0,0.0001792,2]
[382587080,1756674659842,-480.0,0.0001792,2]
[382587082,1756674659851,-572.97,0.0001792,2]
[382587084,1756674659860,-480.0,0.0001792,2]
[382587086,1756674659869,-480.0,0.0001792,2]
[382587088,1756674659879,-480.0,0.0001792,2]
[382587090,1756674659888,-1082.95,0.0001792,2]
[382587092,1756674659897,-480.0,0.0001792,2]
[382587094,1756674659907,-553.35,0.0001792,2]
[382587096,1756674659916,-535.16,0.0001792,2]
[382587098,1756674659925,-480.0,0.0001792,2]
[382587100,1756674659935,-535.7,0.0001792,2]
[382587102,1756674659944,-480.0,0.0001792,2]
[382587104,1756674659954,-1149.21,0.0001792,2]
[382587106,1756674659964,-480.0,0.0001792,2]
[382587108,1756674659973,-480.0,0.0001792,2]
[382587110,1756674659983,-660.94,0.0001792,2]
[382587112,1756674659992,-480.0,0.0001792,2]
[382587114,1756674660002,-594.61,0.0001792,2]
[382587116,1756674660012,-480.0,0.0001792,2]
[382587118,1756674660021,-480.0,0.0001792,2]
[382587120,1756674660031,-779.46,0.0001792,2]
[382587122,1756674660041,-151.0,0.0001792,2]
[382587124,1756674660051,-569.86,0.0001792,2]
[382587126,1756674660061,-944.13,0.0001792,2]
[382587128,1756674660071,-151.0,0.0001792,2]
[382587130,1756674660080,-151.0,0.0001792,2]
[382587132,1756674660090,-151.0,0.0001792,2]
[382587134,1756674660099,-280.615118,0.0001792,2]
[382587136,1756674660109,-480.0,0.0001792,2]
[382587138,1756674660119,-480.0,0.0001792,2]
[382587140,1756674660128,-170.555053,0.0001792,2]
[382587142,1756674660138,-480.0,0.0001792,2]
[382587144,1756674660148,-1125.84,0.0001792,2]
[382587147,1756674660158,-1000.0,0.0001792,2]
[382587149,1756674660168,-1000.0,0.0001792,2]
[382587151,1756674660177,-151.0,0.0001792,2]
[382587153,1756674660187,-1000.0,0.0001792,2]
[382587155,1756674660197,-1000.0,0.0001792,2]
[382587157,1756674660207,-151.0,0.0001792,2]
[382587159,1756674660217,-1000.0,0.0001792,2]
[382587161,1756674660226,-1000.0,0.0001792,2]
[382587163,1756674660235,-1000.0,0.0001792,2]
[382587165,1756674660245,-1000.0,0.0001792,2]
[382587167,1756674660255,-1000.0,0.0001792,2]